bitfinex/quotes_SOLUSD_20240718
["timestamp","ask_amount","ask_price","bid_price","bid_amount"]
[1721271926085,6.2877,159.04,158.99,22.0129]
[1721271926243,6.2877,159.04,158.99,15.7234]
[1721271927550,6.2877,159.04,158.99,22.0129]
[1721271927769,6.2881,159.03,158.96,1.25765298]
[1721271928459,6.2877,159.04,158.97,15.7252]
[1721271928772,6.2877,159.04,158.98,1.25767829]
[1721271928979,7.0973416,159.05,158.99,7.54695176]
[1721271929160,7.0973416,159.05,158.99,1.25765176]
[1721271929161,0.8100416,159.05,158.99,1.25765176]
[1721271929361,6.2885,159.02,158.97,15.7252]
[1721271929548,6.2885,159.02,158.97,22.0155]
[1721271929881,6.2881,159.03,158.98,7.54785214]
[1721271930041,7.0976416,159.05,158.99,6.2896]
[1721271930245,0.8100416,159.05,158.97,15.7252]
[1721271930475,45.0,159.04,158.97,22.0156]
[1721271930659,0.8100416,159.05,158.97,15.7252]
[1721271930860,0.8100416,159.05,158.98,6.2898]
[1721271931374,0.8100416,159.05,159.0,15.7228]
[1721271931558,0.8100416,159.05,159.01,7.54625882]
[1721271931944,0.8100416,159.05,159.01,1.25765882]
[1721271932245,7.0974416,159.05,159.01,1.25765882]
[1721271932644,0.8100416,159.05,158.98,6.2897]
[1721271933273,6.2877,159.04,158.98,6.2897]
[1721271934151,0.8100416,159.05,158.97,22.0165]
[1721271935085,0.8100416,159.05,158.98,6.29]
[1721271935259,6.288,159.04,158.99,6.2895]
[1721271935460,6.288,159.04,159.0,1.25767805]
[1721271936176,6.288,159.04,158.99,6.2895]
[1721271936969,7.0973416,159.05,159.0,6.2891]
[1721271937270,7.0974416,159.05,159.0,6.2892]
[1721271937750,7.0974416,159.05,158.99,22.013]
[1721271938074,6.2877,159.04,158.99,22.013]
[1721271938479,7.0974416,159.05,159.0,1.2576658]
[1721271938663,7.0974416,159.05,159.0,7.5466658]
[1721271939865,0.8100416,159.05,159.01,6.2888]
[1721271940056,0.8100416,159.05,159.02,1.25753439]
[1721271940762,7.0974416,159.05,158.99,22.0127]
[1721271940977,7.0974416,159.05,159.0,6.2892]
[1721271941447,6.2885,159.02,158.97,6.2904]
[1721271941766,6.2892,159.01,158.96,6.2908]
[1721271943869,6.2894,159.0,158.95,31.8337]
[1721271944171,6.2897,158.99,158.93,6.292]
[1721271944475,6.2897,158.99,158.94,6.2916]
[1721271945274,6.2893,159.0,158.94,6.2916]
[1721271945575,6.2893,159.0,158.95,6.2911]
[1721271945763,6.2893,159.0,158.94,6.2916]
[1721271946281,6.2898,158.99,158.94,6.2916]
[1721271948467,6.2898,158.99,158.93,15.7293]
[1721271948468,6.2892,159.01,158.95,6.2911]
[1721271948676,45.0,159.0,158.96,6.2907]
[1721271948869,6.2892,159.01,158.96,6.2907]
[1721271949880,6.2885,159.02,158.97,7.54811072]
[1721271950462,6.2885,159.02,158.97,6.2902]
[1721271950664,31.3100416,159.05,158.98,7.54783491]
[1721271950871,31.3100416,159.05,158.97,15.7254]
[1721271950872,6.2877,159.04,158.99,6.2895]
[1721271951061,0.8100416,159.05,159.0,6.2892]
[1721271951393,7.0975416,159.05,159.0,6.2892]
[1721271951760,0.8100416,159.05,159.01,6.2888]
[1721271952069,0.8100416,159.05,159.0,6.2892]
[1721271952468,7.0973416,159.05,159.0,6.2892]
[1721271955281,0.8100416,159.05,159.0,6.2892]
[1721271955860,7.0975416,159.05,159.0,6.2892]
[1721271956061,0.8100416,159.05,158.99,15.7233]
[1721271956764,6.2884,159.03,158.99,1.25769506]
[1721271957175,6.2877,159.04,158.99,1.25769506]
[1721271957381,6.2877,159.04,158.99,7.54729506]
[1721271957778,6.2877,159.04,158.99,6.2896]
[1721271958074,6.2877,159.04,159.0,1.25767523]
[1721271958484,6.2877,159.04,158.99,6.2896]
[1721271958687,6.2882,159.03,158.97,22.0154]
[1721271958987,6.2885,159.02,158.97,22.0154]
[1721271959883,6.2881,159.03,158.97,22.0154]
[1721271960087,45.8100416,159.05,158.97,22.0154]
[1721271960088,6.2885,159.02,158.97,22.0154]
[1721271961679,45.8100416,159.05,158.97,22.0157]
[1721271961680,6.2881,159.03,158.97,22.0157]
[1721271963893,6.2881,159.03,158.98,6.2899]
[1721271964188,0.8100416,159.05,158.99,1.25788729]
[1721271964786,15.21,159.02,158.99,6.2896]
[1721271966383,6.2877,159.04,158.99,6.2896]
[1721271966782,15.21,159.03,159.0,6.2892]
[1721271967097,15.21,159.04,159.01,7.54645623]
[1721271967687,0.8100416,159.05,159.01,6.2888]
[1721271968500,15.21,159.04,159.0,22.0123]
[1721271968996,0.8100416,159.05,159.0,22.0123]
[1721271969494,0.8100416,159.05,159.01,6.2887]
[1721271970498,15.21,159.04,159.01,7.54627155]
[1721271971302,15.21,159.04,159.01,6.2887]
[1721271972490,15.21,159.04,159.0,15.7231]
[1721271973509,7.0974416,159.05,159.0,15.7231]
[1721271973702,7.0974416,159.05,159.0,22.0123]
[1721271974909,7.0974416,159.05,159.01,1.25759615]
[1721271975093,7.0974416,159.05,159.02,1.25757238]
[1721271976207,7.0974416,159.05,159.01,1.25757293]
[1721271976401,7.0974416,159.05,159.0,22.0123]
[1721271978186,7.0974416,159.05,159.01,1.25757638]
[1721271978381,15.21,159.03,159.0,15.7231]
[1721271978706,6.2878,159.04,159.0,15.7231]
[1721271979089,15.3249,159.04,158.93,15.7813]
[1721271979384,15.21,158.98,158.93,15.7813]
[1721271979580,6.2893,159.0,158.95,6.2909]
[1721271979778,45.0,159.03,158.94,15.21]
[1721271980021,15.21,159.0,158.95,30.9372]
[1721271980304,15.21,159.02,158.97,15.21]
[1721271980614,15.21,159.02,158.98,1.25770389]
[1721271980793,15.21,159.02,158.99,1.25771323]
[1721271980997,0.8100416,159.05,159.0,15.21]
[1721271981209,16.0200416,159.05,159.01,1.25745646]
[1721271981504,0.8100416,159.05,159.02,7.54555749]
[1721271981907,0.8100416,159.05,159.02,6.2881]
[1721271982207,0.8100416,159.05,159.01,22.011]
[1721271982794,0.8100416,159.05,159.02,1.25748163]
[1721271983096,0.8100416,159.05,159.01,22.011]
[1721271983623,0.8100416,159.05,159.02,1.25753639]
[1721271985206,0.8100416,159.05,159.03,6.2877]
[1721271985407,0.8100416,159.05,159.04,1.25734787]
[1721271985627,0.8100416,159.05,159.04,7.54504787]
[1721271986000,0.8100416,159.05,159.04,6.2877]
[1721271986318,0.8100416,159.05,159.03,15.7193]
[1721271986516,0.8100416,159.05,159.04,1.25730341]
[1721271986715,0.8100416,159.05,159.03,15.7193]
[1721271987296,0.8100416,159.05,158.99,31.9256]
[1721271987607,0.8100416,159.05,159.01,6.2885]
[1721271987799,0.8100416,159.05,159.02,6.2884]
[1721271989316,0.8100416,159.05,159.01,6.2887]
[1721271991620,0.8100416,159.05,159.02,7.54593796]
[1721271991807,0.8100416,159.05,159.02,6.2884]
[1721271992714,0.8100416,159.05,159.03,1.25753001]
[1721271992918,0.8100416,159.05,159.04,6.2877]
[1721271993503,0.8100416,159.05,159.03,6.288]
[1721271994219,0.8100416,159.05,159.01,15.7213]
[1721271994220,0.8100416,159.05,159.04,1.25733635]
[1721271994420,0.8100416,159.05,159.02,6.2881]
[1721271994629,0.8100416,159.05,159.01,15.7213]
[1721271994805,0.8100416,159.05,159.04,6.2877]
[1721271995134,0.8100416,159.05,159.04,7.54501899]
[1721271997005,0.8100416,159.05,159.04,6.2877]
[1721271997817,0.8100416,159.05,159.04,7.54488835]
[1721271998519,0.8100416,159.05,159.04,6.2877]
[1721272001629,0.8100416,159.05,159.04,7.54489031]
[1721272005929,0.8100416,159.05,159.04,88.91299031]
[1721272006321,0.8100416,159.05,159.04,183.81299031]
[1721272006715,0.8100416,159.05,159.04,190.12599031]
[1721272007037,0.8100416,159.05,159.04,188.8688]
[1721272008244,0.8100416,159.05,159.04,106.6058]
[1721272008534,0.8100416,159.05,159.04,107.86265577]
[1721272009811,28.5426,159.16,159.1,6.2851]
[1721272010117,7.21272122,159.15,159.09,21.9995]
[1721272010441,7.21272122,159.15,159.11,1.25681167]
[1721272010734,6.2835,159.15,159.11,1.25681167]
[1721272010913,6.2837,159.14,159.09,21.9995]
[1721272011738,23.18882122,159.16,159.12,6.2845]
[1721272011910,22.2596,159.16,159.13,1.25670167]
[1721272012648,28.5429,159.16,159.1,6.2853]
[1721272013133,28.5429,159.16,159.11,7.54150332]
[1721272014520,22.2596,159.16,159.12,6.2845]
[1721272014742,22.2596,159.16,159.13,1.25667953]
[1721272015231,22.2596,159.16,159.13,7.54077953]
[1721272015736,22.2596,159.16,159.14,1.2566049]
[1721272016517,6.2825,159.18,159.14,1.2566049]
[1721272016832,6.2825,159.18,159.13,6.284]
[1721272017129,0.92922122,159.17,159.13,6.284]
[1721272017331,7.21192122,159.17,159.11,15.7115]
[1721272017537,6.2827,159.17,159.12,1.25661888]
[1721272018910,6.2827,159.17,159.12,7.54111888]
[1721272019114,6.2827,159.17,159.12,6.2845]
[1721272019524,0.92922122,159.16,159.12,6.2845]
[1721272019720,22.8423,159.15,159.07,15.7154]
[1721272019925,6.2845,159.12,159.07,15.7154]
[1721272020223,45.92922122,159.14,159.07,15.7154]
[1721272020430,23.77152122,159.15,159.11,6.2849]
[1721272020638,23.77152122,159.15,159.1,21.9981]
[1721272020639,30.05492122,159.15,159.1,21.9981]
[1721272021039,0.92922122,159.14,159.1,15.7128]
[1721272021227,52.21312122,159.14,159.07,15.7162]
[1721272021412,45.92922122,159.14,159.07,22.0023]
[1721272021622,6.2856,159.1,159.05,6.2873]
[1721272021932,0.92922122,159.09,159.05,6.2873]
[1721272022122,6.285,159.11,159.05,6.2873]
[1721272022325,0.92922122,159.1,159.05,6.2872]
[1721272022839,0.92922122,159.1,159.06,1.25725305]
[1721272023017,0.92922122,159.1,159.05,6.2872]
[1721272023540,7.21452122,159.1,159.05,6.2872]
[1721272023737,6.2853,159.1,159.05,6.2872]
[1721272024041,0.92922122,159.12,159.06,7.54402959]
[1721272024240,6.2853,159.11,159.05,6.2873]
[1721272024432,0.92922122,159.1,159.05,6.2873]
[1721272025438,45.92922122,159.12,159.06,16.97413121]
[1721272025640,7.21352122,159.13,159.08,6.286]
[1721272025830,7.21352122,159.13,159.06,22.0034]
[1721272026031,0.92922122,159.13,159.06,15.7169]
[1721272026640,7.21332122,159.14,159.08,6.2857]
[1721272027034,6.2841,159.13,159.08,6.2857]
[1721272027232,0.92922122,159.12,159.08,6.2857]
[1721272027641,7.21332122,159.13,159.08,6.2857]
[1721272028345,7.21332122,159.13,159.09,1.25699223]
[1721272028846,6.2841,159.13,159.09,1.25699223]
[1721272029034,22.8423,159.15,159.09,1.25699223]
[1721272029035,30.05512122,159.15,159.09,1.25699223]
[1721272029245,22.8423,159.15,159.09,1.25699223]
[1721272029437,22.8423,159.15,159.12,6.2844]
[1721272029746,22.8423,159.15,159.13,7.54077759]
[1721272030041,16.3275,159.15,159.13,7.54077759]
[1721272030244,16.3275,159.15,159.12,6.2845]
[1721272030435,16.3275,159.15,159.12,7.54118681]
[1721272030642,6.2822,159.18,159.13,6.2841]
[1721272030949,15.19,159.18,159.14,16.96591349]
[1721272031125,15.19,159.16,159.14,15.7093]
[1721272031325,15.19,159.17,159.14,23.24956384]
[1721272031826,15.19,159.17,159.14,15.7093]
[1721272032027,15.19,159.16,159.12,6.2841]
[1721272032250,7.21152122,159.18,159.13,1.25662182]
[1721272032623,23.63462122,159.19,159.13,7.54052182]
[1721272032834,22.7054,159.19,159.14,7.5398108]
[1721272033035,22.7054,159.19,159.15,6.2832]
[1721272033435,0.92922122,159.18,159.13,15.7103]
[1721272033955,7.21142122,159.18,159.13,21.9943]
[1721272034129,0.92922122,159.17,159.13,21.9943]
[1721272035244,0.92922122,159.18,159.14,7.5403082]
[1721272036327,0.92922122,159.18,159.14,6.2837]
[1721272036557,0.92922122,159.17,159.13,15.7103]
[1721272037244,6.2834,159.15,159.09,15.7133]
[1721272037451,0.92922122,159.14,159.09,15.7133]
[1721272037657,6.2834,159.15,159.1,6.285]
[1721272037833,7.21212122,159.17,159.09,15.7133]
[1721272038037,6.283,159.16,159.1,6.2849]
[1721272038244,45.0,159.18,159.1,6.2849]
[1721272038245,7.21272122,159.15,159.1,6.2849]
[1721272038452,0.92922122,159.14,159.1,6.2849]
[1721272038635,0.92922122,159.14,159.1,7.54173752]
[1721272038842,6.2835,159.15,159.11,1.25683255]
[1721272039235,6.283,159.16,159.11,7.54173255]
[1721272039431,7.21222122,159.16,159.11,6.2849]
[1721272039642,6.2833,159.15,159.1,6.2853]
[1721272039829,0.92922122,159.14,159.1,6.2853]
[1721272040031,0.92922122,159.14,159.11,1.25683683]
[1721272040432,0.92922122,159.14,159.1,6.2853]
[1721272040639,7.21302122,159.14,159.09,15.7133]
[1721272040954,0.92922122,159.13,159.09,15.7133]
[1721272043236,0.92922122,159.15,159.09,16.97027716]
[1721272043435,0.92922122,159.15,159.1,1.25684344]
[1721272043675,0.92922122,159.15,159.11,7.54174344]
[1721272043837,0.92922122,159.17,159.12,6.2844]
[1721272044037,0.92922122,159.17,159.13,6.2841]
[1721272044556,7.21192122,159.17,159.11,21.996]
[1721272044858,0.92922122,159.16,159.12,6.2845]
[1721272045458,7.21242122,159.16,159.11,15.7114]
[1721272045962,0.92922122,159.15,159.11,15.7114]
[1721272046460,6.2826,159.17,159.12,1.2568227]
[1721272046630,0.92922122,159.16,159.11,15.7114]
[1721272046829,7.21212122,159.16,159.11,15.7114]
[1721272047356,7.21212122,159.16,159.11,21.9963]
[1721272047557,0.92922122,159.15,159.11,21.9963]
[1721272048062,7.21162122,159.18,159.12,1.25679784]
[1721272048247,0.92922122,159.17,159.12,1.25679784]
[1721272049035,0.92922122,159.17,159.13,6.2841]
[1721272049358,7.21192122,159.17,159.12,7.54119784]
[1721272049572,0.92922122,159.16,159.11,21.9962]
[1721272049854,7.21192122,159.17,159.11,15.7114]
[1721272050153,7.21192122,159.17,159.12,7.5411735]
[1721272050338,7.21192122,159.17,159.11,21.9962]
[1721272050938,6.2833,159.16,159.11,15.7114]
[1721272051262,0.92922122,159.15,159.11,21.9963]
[1721272052248,6.2826,159.17,159.12,1.25678868]
[1721272052558,0.92922122,159.16,159.12,6.2845]
[1721272053546,7.21212122,159.16,159.11,21.9962]
[1721272053743,6.2829,159.16,159.11,21.9962]
[1721272054269,15.19,159.14,159.11,21.9962]
[1721272054561,15.19,159.14,159.11,15.7114]
[1721272054931,15.19,159.14,159.11,21.996]
[1721272056843,15.19,159.14,159.13,6.2841]
[1721272059165,15.19,159.16,159.14,6.2834]
[1721272059344,15.19,159.16,159.13,15.7096]
[1721272059345,15.19,159.16,159.13,21.9937]
[1721272059547,15.19,159.15,159.13,21.9937]
[1721272060357,15.19,159.15,159.14,6.2837]
[1721272066870,0.92922122,159.18,159.15,6.2832]
[1721272067476,0.92922122,159.18,159.14,6.2837]
[1721272067654,45.92922122,159.18,159.14,6.2837]
[1721272067969,15.19,159.15,159.14,6.2837]
[1721272068354,15.19,159.15,159.13,15.7096]
[1721272068561,6.2826,159.17,159.13,15.7096]
[1721272068771,0.92922122,159.16,159.13,21.9935]
[1721272069076,15.19,159.14,159.13,21.9935]
[1721272071088,0.92922122,159.17,159.14,6.2837]
[1721272071862,15.19,159.15,159.14,6.2837]
[1721272072888,15.19,159.16,159.13,15.7096]
[1721272073086,45.92922122,159.15,159.11,6.2848]
[1721272073577,0.92922122,159.15,159.12,6.2844]
[1721272073764,0.92922122,159.16,159.13,6.284]
[1721272073958,15.19,159.15,159.13,6.284]
[1721272074490,15.19,159.15,159.14,6.2837]
[1721272075994,15.19,159.15,159.13,6.2841]
[1721272076289,0.92922122,159.14,159.08,15.7145]
[1721272076482,0.92922122,159.14,159.09,1.25695289]
[1721272076793,0.92922122,159.16,159.11,6.2847]
[1721272076980,15.19,159.13,159.11,6.2847]
[1721272077567,52.21222122,159.16,159.11,6.2847]
[1721272077765,0.92922122,159.15,159.12,6.2845]
[1721272077987,0.92922122,159.15,159.1,15.7125]
[1721272077988,7.21152122,159.18,159.13,6.2841]
[1721272078171,0.92922122,159.17,159.13,6.2841]
[1721272079862,15.19,159.15,159.13,6.2841]
[1721272080366,0.92922122,159.17,159.1,15.7125]
[1721272080571,15.19,159.14,159.1,15.7125]
[1721272080780,15.19,159.14,159.12,6.2844]
[1721272080977,15.19,159.15,159.11,1.25680391]
[1721272081902,0.92922122,159.17,159.14,6.2837]
[1721272082071,0.92922122,159.17,159.12,15.7105]
[1721272082072,0.92922122,159.18,159.15,6.2833]
[1721272082272,15.19,159.17,159.15,6.2833]
[1721272083363,0.92922122,159.18,159.15,6.2833]
[1721272083560,0.92922122,159.18,159.14,6.2837]
[1721272083760,28.9872,159.19,159.14,6.2837]
[1721272084072,0.92922122,159.18,159.14,6.2837]
[1721272084390,15.19,159.15,159.14,6.2837]
[1721272085376,0.92922122,159.18,159.14,6.2837]
[1721272085807,15.19,159.17,159.14,6.2837]
[1721272086099,15.19,159.17,159.15,6.2832]
[1721272087590,15.19,159.17,159.15,7.53970366]
[1721272088313,7.21062122,159.2,159.15,6.2832]
[1721272088811,1.73919202,159.21,159.16,1.25646621]
[1721272089193,15.19,159.2,159.16,1.25646621]
[1721272089778,1.73919202,159.21,159.16,1.25646621]
[1721272089977,1.73919202,159.21,159.17,6.2825]
[1721272090615,0.8099708,159.21,159.18,7.53843303]
[1721272090819,15.9999708,159.21,159.19,6.2817]
[1721272090988,0.8099708,159.21,159.19,6.2817]
[1721272092500,0.8099708,159.21,159.2,7.53757638]
[1721272093519,0.8099708,159.21,159.16,37.18]
[1721272093741,15.19,159.2,159.16,23.24633048]
[1721272093884,15.19,159.19,159.17,6.2825]
[1721272094080,15.9999708,159.21,159.16,32.15363048]
[1721272094284,15.19,159.2,159.16,16.96363048]
[1721272094485,15.19,159.2,159.17,7.53844383]
[1721272094710,15.9999708,159.21,159.17,7.53844383]
[1721272094901,0.8099708,159.21,159.17,7.53844383]
[1721272095519,0.8099708,159.21,159.19,15.7044]
[1721272097201,15.19,159.2,159.17,6.2822]
[1721272097792,15.9999708,159.21,159.19,6.2818]
[1721272098116,0.8099708,159.21,159.19,6.2818]
[1721272098318,0.8099708,159.21,159.2,1.25610619]
[1721272098814,0.8099708,159.21,159.2,7.53750619]
[1721272101004,0.8099708,159.21,159.2,38.35120619]
[1721272101425,0.8099708,159.21,159.2,44.66420619]
[1721272101939,0.8099708,159.21,159.2,95.71450619]
[1721272102225,0.8099708,159.21,159.2,124.59150619]
[1721272102402,0.8099708,159.21,159.2,130.90450619]
[1721272103101,0.8099708,159.21,159.2,109.40150619]
[1721272103303,0.8099708,159.21,159.2,63.1454]
[1721272103498,0.8099708,159.21,159.2,69.4584]
[1721272104434,0.8099708,159.21,159.2,70.71411291]
[1721272105223,0.8099708,159.21,159.2,115.71411291]
[1721272105613,0.8099708,159.21,159.2,69.4584]
[1721272106126,0.8099708,159.21,159.2,70.71409684]
[1721272107609,0.8099708,159.21,159.2,130.90409684]
[1721272108013,0.8099708,159.21,159.2,124.59109684]
[1721272108326,0.8099708,159.21,159.2,109.40109684]
[1721272108828,0.8099708,159.21,159.2,115.69109684]
[1721272109532,0.8099708,159.21,159.2,134.64109684]
[1721272109916,0.8099708,159.21,159.2,133.3854]
[1721272110119,0.8099708,159.21,159.2,69.4354]
[1721272110319,0.8099708,159.21,159.2,63.3851]
[1721272110510,0.8099708,159.21,159.2,64.64079311]
[1721272111219,0.8099708,159.21,159.2,98.78079492]
[1721272111419,0.8099708,159.21,159.2,128.59079492]
[1721272111934,0.8099708,159.21,159.2,58.35070661]
[1721272112109,0.8099708,159.21,159.2,64.64070661]
[1721272112837,0.8099708,159.21,159.2,109.64070661]
[1721272113437,0.8099708,159.21,159.2,108.3851]
[1721272113743,0.8099708,159.21,159.2,109.64073524]
[1721272114035,0.8099708,159.21,159.2,89.64073524]
[1721272114256,0.8099708,159.21,159.2,136.2351]
[1721272115011,0.8099708,159.21,159.2,142.5251]
[1721272115533,0.8099708,159.21,159.2,86.9051]
[1721272115732,0.8099708,159.21,159.2,41.9051]
[1721272115939,0.8099708,159.21,159.2,58.35081665]
[1721272116142,0.8099708,159.21,159.2,64.64081665]
[1721272116817,0.8099708,159.21,159.2,73.54079743]
[1721272117239,0.8099708,159.21,159.2,124.83079743]
[1721272117417,0.8099708,159.21,159.2,41.4714]
[1721272117614,0.8099708,159.21,159.2,42.72712414]
[1721272118236,0.8099708,159.21,159.2,49.01712414]
[1721272118543,0.8099708,159.21,159.2,64.20712414]
[1721272118730,0.8099708,159.21,159.2,121.86712414]
[1721272118942,0.8099708,159.21,159.2,102.91712414]
[1721272119148,0.8099708,159.21,159.2,87.72712414]
[1721272119446,0.8099708,159.21,159.2,109.20712414]
[1721272120115,0.8099708,159.21,159.2,102.91712414]
[1721272120320,0.8099708,159.21,159.2,109.20712414]
[1721272120520,0.8099708,159.21,159.2,87.72712414]
[1721272121045,0.8099708,159.21,159.2,102.91712414]
[1721272121346,7.72007063,159.32,159.28,6.278]
[1721272121519,7.72007063,159.32,159.29,16.94928545]
[1721272121520,6.1507,159.32,159.29,16.94928545]
[1721272121726,6.1507,159.32,159.3,1.25526995]
[1721272122055,6.1507,159.32,159.29,15.6938]
[1721272122351,6.1507,159.32,159.3,1.25537129]
[1721272122527,7.71986865,159.32,159.28,6.2782]
[1721272123449,15.19,159.29,159.22,15.7009]
[1721272123758,15.19,159.28,159.27,6.2782]
[1721272124545,15.19,159.29,159.27,6.2782]
[1721272124922,15.19,159.29,159.27,7.53374593]
[1721272125343,15.19,159.29,159.27,6.2782]
[1721272125724,13.99666865,159.32,159.26,15.6968]
[1721272126755,13.99666865,159.32,159.27,6.2783]
[1721272129470,13.99666865,159.32,159.26,15.6968]
[1721272129471,7.71986865,159.32,159.26,15.6968]
[1721272129654,7.71986865,159.32,159.28,6.2782]
[1721272130674,15.19,159.3,159.28,6.2782]
[1721272131051,15.19,159.29,159.27,6.2785]
[1721272132871,7.71986865,159.32,159.26,15.6968]
[1721272133050,7.71986865,159.32,159.23,15.7003]
[1721272133051,31.7611,159.28,159.23,15.7003]
[1721272133241,31.7611,159.28,159.18,47.7443]
[1721272133242,7.84888878,159.27,159.21,6.2806]
[1721272133444,15.19,159.22,159.21,6.2806]
[1721272133854,7.72546717,159.26,159.19,15.7036]
[1721272134072,6.1555,159.26,159.22,6.2803]
[1721272134377,6.1555,159.26,159.23,6.28]
[1721272134562,15.19,159.24,159.23,6.28]
[1721272135250,15.19,159.24,159.21,21.9826]
[1721272135457,14.00438614,159.26,159.21,21.9826]
[1721272137671,7.72538614,159.26,159.23,6.2801]
[1721272137878,6.1555,159.26,159.24,6.2797]
[1721272138254,21.3455,159.26,159.25,6.2794]
[1721272138973,31.7611,159.28,159.26,6.2789]
[1721272139279,15.19,159.27,159.24,6.2795]
[1721272139480,16.5711,159.28,159.24,6.2795]
[1721272139655,15.19,159.27,159.24,6.2795]
[1721272140282,15.19,159.26,159.24,6.2795]
[1721272140783,16.5711,159.28,159.24,6.2795]
[1721272140983,16.5711,159.28,159.25,7.53472618]
[1721272141145,15.19,159.29,159.26,6.279]
[1721272141344,15.19,159.29,159.26,15.6975]
[1721272141965,15.19,159.29,159.27,6.2786]
[1721272142349,15.19,159.29,159.22,6.29]
[1721272142350,1.56944926,159.29,159.25,6.279]
[1721272142657,1.56944926,159.29,159.24,6.2797]
[1721272142974,1.56959253,159.29,159.26,6.2789]
[1721272143276,16.75959253,159.29,159.26,6.2789]
[1721272143660,1.56959253,159.29,159.25,21.9777]
[1721272143847,15.19,159.28,159.25,21.9777]
[1721272144047,15.19,159.28,159.26,6.279]
[1721272144449,15.19,159.28,159.25,15.6983]
[1721272144873,7.84741935,159.29,159.23,6.2802]
[1721272145105,6.2783,159.28,159.23,6.2802]
[1721272145284,1.56980831,159.27,159.23,6.2802]
[1721272145664,7.84850831,159.27,159.22,21.9819]
[1721272145875,6.2782,159.28,159.22,21.9819]
[1721272146186,1.56981191,159.27,159.22,21.9819]
[1721272146349,1.56981191,159.27,159.23,6.28]
[1721272146557,1.56977967,159.28,159.24,6.2795]
[1721272147066,16.7596704,159.29,159.25,15.6985]
[1721272147260,1.5696704,159.29,159.25,15.6985]
[1721272147468,1.5696704,159.29,159.25,21.9777]
[1721272148579,6.6208,159.3,159.26,6.2789]
[1721272148760,6.6208,159.3,159.26,7.53454944]
[1721272149464,6.6208,159.3,159.26,6.2789]
[1721272149862,1.56957274,159.29,159.25,15.6985]
[1721272150271,14.46778269,159.3,159.25,21.9777]
[1721272150579,1.56956654,159.29,159.25,21.9777]
[1721272150879,1.56956654,159.29,159.25,15.6985]
[1721272151257,1.56956654,159.29,159.25,23.23336553]
[1721272151762,1.56956654,159.29,159.25,21.9777]
[1721272152614,1.56956654,159.29,159.26,6.2789]
[1721272152889,1.56956654,159.29,159.25,15.6985]
[1721272153871,14.46778005,159.3,159.26,1.25566404]
[1721272154191,8.19038005,159.3,159.26,1.25566404]
[1721272154575,15.19,159.29,159.26,7.53456404]
[1721272155277,15.19,159.29,159.27,1.25566077]
[1721272156164,21.8108,159.3,159.27,1.25566077]
[1721272156591,15.19,159.29,159.26,6.2789]
[1721272156885,14.95,159.29,159.25,21.9778]
[1721272157693,15.19,159.28,159.25,21.9778]
[1721272157893,21.8108,159.3,159.28,6.2782]
[1721272158109,21.8108,159.3,159.27,6.2786]
[1721272158620,21.8108,159.3,159.26,6.2789]
[1721272159120,6.6208,159.3,159.26,6.2789]
[1721272163319,6.6208,159.3,159.25,21.9778]
[1721272166416,6.6208,159.3,159.26,6.2789]
[1721272168419,7.84739273,159.29,159.24,6.2798]
[1721272168627,7.84739273,159.29,159.22,15.7013]
[1721272168628,1.56949273,159.29,159.23,6.2801]
[1721272168831,52.84729273,159.29,159.24,6.2798]
[1721272169210,16.1585,159.28,159.22,15.7013]
[1721272169522,1.56994364,159.27,159.22,21.9818]
[1721272169712,1.57004003,159.26,159.23,6.2802]
[1721272170302,16.1585,159.28,159.24,6.2798]
[1721272170502,1.56988306,159.27,159.24,6.2798]
[1721272170903,1.56988421,159.26,159.24,6.2798]
[1721272171127,1.56988421,159.26,159.23,6.2801]
[1721272171830,21.3189,159.24,159.18,47.1144]
[1721272172007,15.19,159.21,159.18,47.1144]
[1721272172209,15.19,159.2,159.19,6.2817]
[1721272172413,17.08946445,159.23,159.19,6.2817]
[1721272173803,17.08946445,159.23,159.21,6.2809]
[1721272174004,15.19,159.22,159.21,6.2809]
[1721272174723,30.7092,159.23,159.22,6.2806]